Cogmind - Beta 17 *** ADVENTURER MODE // 2026.07.02 @ 11:22:17 Player: POPESNHOES Result: Destroyed by AU-LVI(R) with Subdweller Machine Gun Performance ------------- Evolutions (0) 0 Regions Visited (2) 400 Robots Destroyed (9) 45 Value Destroyed (236) 236 Prototype IDs (0) 0 Alien Tech Used (0) 0 Bonus (0) 0 TOTAL SCORE: 681 Bonus ------- None Cogmind --------- Core Integrity 0/250 Matter 290/300 Energy 154/250 System Corruption 0% Temperature Cool (3) Movement Walking (190) Ox1 Location -10/Subcaves Parts ------- > --- POWER (1) -------- Ion Engine > --- PROPULSION (2) --- Aluminum Leg Myomer Leg > --- UTILITY (2) ------ High-capacity Storage Unit Targeting Computer > --- WEAPON (2) ------- (None) > --- INVENTORY (20) --- Light Ion Engine Aluminum Leg Aluminum Leg Scrap Shield Assault Rifle Peak State ------------ > --- POWER ------------ Light Nuclear Core > --- PROPULSION ------- Aluminum Leg Aluminum Leg > --- UTILITY ---------- High-capacity Storage Unit Targeting Computer > --- WEAPON ----------- Particle Gun Subdweller Machine Gun > --- INVENTORY -------- Ion Engine Light Ion Engine Aluminum Leg Aluminum Leg Scrap Shield Assault Rifle Assault Rifle Assault Rifle [Rating: 12] Favorites ----------- Power Light Nuclear Core Engine Ion Engine Power Core Light Nuclear Core Propulsion Aluminum Leg Leg Aluminum Leg Utility Targeting Computer Storage High-capacity Storage Unit Processor Targeting Computer Weapon Assault Rifle Energy Gun Particle Gun Ballistic Gun Assault Rifle Build | -11 -10 -10 ------- Run | Yrd Mat Sub Slots Evolved . | . . . Power . | . . . Propulsion . | . . . Utility . | . . . Weapon . | . . . Parts Attached 15 | 6 5 4 Power 2 | 1 1 . Engine 1 | 1 . . Core 1 | . 1 . Reactor . | . . . Propulsion 6 | 2 1 3 Treads . | . . . Leg 6 | 2 1 3 Wheel . | . . . Hover . | . . . Flight . | . . . Utility 3 | 1 2 . Device . | . . . Storage 2 | 1 1 . Processor 1 | . 1 . Hackware . | . . . Protection . | . . . Artifact . | . . . Weapon 4 | 2 1 1 Energy Gun 1 | . 1 . Energy Cannon . | . . . Ballistic Gun 3 | 2 . 1 Ballistic Cannon . | . . . Launcher . | . . . Special Weapon . | . . . Impact Weapon . | . . . Slashing Weapon . | . . . Piercing Weapon . | . . . Special Melee Weapon . | . . . Unidentified Prototypes . | . . . Parts Lost 4 | . . 4 Power 1 | . . 1 Propulsion 1 | . . 1 Utility . | . . . Weapon 2 | . . 2 Highest Loss Streak 4 | . . 4 To Critical Strikes . | . . . Average Backups 4 | 3 4 5 Power 1 | . 1 1 Propulsion 1 | . 1 1 Utility . | . . . Weapon 1 | 1 1 1 Tool/Special . | . . . Unused Backups 4 | . 1 3 Power 1 | . . 1 Propulsion . | . . . Utility 2 | . 1 1 Weapon 1 | . . 1 Tool/Special . | . . . Average Slot Usage (%) 93 | . 94 92 Engine 3 | . 4 . Core 10 | . 9 11 Leg 27 | . 28 26 Storage 14 | . 14 14 Processor 9 | . 8 14 Energy Gun 10 | . 9 12 Ballistic Gun 17 | . 18 11 Peak Build Rating 12 | 6 10 12 Average Rating 8 | 2 8 9 On Entrance 5 | . 6 10 Avg Prop Armor Cover (%) . | . . . Naked Turns . | . . . Heaviest Build 52 | 14 50 52 Greatest Support 35 | 20 20 35 Greatest Overweight (x) 4 | 3 2 4 Average Overweight (x) 1 | 1 1 2 Largest Inventory Capacity 20 | 8 20 20 Average Capacity 15 | 7 15 20 Most Carried 9 | 6 7 9 Average Carried 5 | 3 5 6 Final Capacity 20 | 8 20 20 Final Carried 6 | 2 6 6 Class Distribution -------------------- 100% | Mutant Dominant Class ---------------- Mutant | -10/Materials Mutant | -10/Subcaves Resources | -11 -10 -10 ----------- Run | Yrd Mat Sub Matter Collected 485 | 266 167 52 Remotely . | . . . Salvage Created 464 | 89 346 29 Parts 22 | . 19 3 Haulers Intercepted . | . . . Recyclers Shooed . | . . . Parts Field Recycled . | . . . Retrieved Matter . | . . . Parts Self-Destructed 1 | . . 1 Prevented . | . . . Parts Restored . | . . . Kills | -11 -10 -10 ------- Run | Yrd Mat Sub Combat Hostiles Destroyed 5 | . 4 1 Guns 5 | . 4 1 Classes Destroyed 4 | 1 2 1 Recycler 3 | 1 2 . Watcher 1 | . 1 . Grunt 4 | . 4 . Subdweller 1 | . . 1 Best Kill Streak 5 | 1 5 1 Combat Bots Only 2 | . 2 1 Max Kills in Single Turn 1 | 1 1 1 Gunslinging . | . . . Exploded . | . . . Melee . | . . . Uniques/NPCs Destroyed . | . . . Combat | -11 -10 -10 -------- Run | Yrd Mat Sub Hostile Shots Fired 75 | . 17 58 Missed 24 | . 7 17 Hits 51 | . 10 41 Projectile 51 | . 10 41 Critical Strikes 2 | . 1 1 Damage Taken 857 | . 105 752 Core 259 | . 8 251 Absorbed by Shields . | . . . Ignored by Resistances 238 | . 32 206 Core Remaining (%) 100 | 100 . . Volleys Fired 28 | 1 20 7 Largest 2 | 2 2 2 Hottest 95 | 40 85 95 Shots Fired 56 | 2 40 14 Gun 56 | 2 40 14 Cannon . | . . . Launcher . | . . . Special . | . . . Kinetic 48 | 2 39 7 Thermal 8 | . 1 7 Explosive . | . . . Electromagnetic . | . . . Robot Hit Streak 14 | 2 10 14 Robot Miss Streak 1 | . 1 . Penetration Max . | . . . Secondary Targets 1 | . 1 . Max Gunslinging Chain 1 | . 1 . Shots Hit Robots 48 | 2 33 13 Core Hits 19 | 1 15 3 Critical Kills . | . . . Critical Parts Destroyed . | . . . Critical Strikes . | . . . Melee Attacks . | . . . Impact . | . . . Slashing . | . . . Piercing . | . . . Sneak Attacks . | . . . Combat Hostiles . | . . . Follow-up Attacks . | . . . Damage Inflicted 646 | 25 420 201 Guns 646 | 25 420 201 Cannons . | . . . Explosions . | . . . Melee . | . . . Ramming . | . . . Kinetic 525 | 25 402 98 Thermal 121 | . 18 103 Explosive . | . . . Electromagnetic . | . . . Impact . | . . . Slashing . | . . . Piercing . | . . . Highest Corruption . | . . . Average Corruption . | . . . Corruption Purged . | . . . Corruption Blocked . | . . . Overload Shots . | . . . Overflow Damage . | . . . Projectiles . | . . . Explosions . | . . . Melee . | . . . Knockbacks . | . . . Impact . | . . . Kinetic . | . . . Secondary . | . . . Self-Inflicted Damage . | . . . Shots . | . . . Rammed . | . . . Targets Rammed . | . . . Kicked . | . . . Crushed . | . . . Highest Temperature 231 | . 30 231 Average Temperature 52 | . 11 118 Received Heat Transfer 485 | . 96 389 Siege Activations . | . . . Martial Activations . | . . . Shielding Activations . | . . . Robots Disrupted . | . . . Combat Hostiles . | . . . Robots Corrupted . | . . . Combat Hostiles . | . . . Parts Fried . | . . . Impact Corruptions . | . . . Robots Melted . | . . . Combat Hostiles . | . . . Parts Melted . | . . . Heat Transferred 296 | . 37 259 Parts Sabotaged . | . . . Parts Stolen . | . . . Parts Stripped . | . . . Power Chain Reactions . | . . . Alert | -11 -10 -10 ------- Run | Yrd Mat Sub Maximum Alert Level . | . . . Low Security (%) 100 | 100 100 . Level 1 . | . . . Level 2 . | . . . Level 3 . | . . . Level 4 . | . . . Level 5 . | . . . High Security . | . . . Max Security . | . . . Peak Influence 60 | 5 60 . Initial 2 | . 2 . Average 12 | . 14 . Influence Increases 122 | 5 117 . Destroy 0b10 Robot/C 80 | . 80 . Destroy 0b10 Robot/NC 20 | 5 15 . Destroy Leader 22 | . 22 . Influence Decreases 122 | . 122 . Entered New Map 3 | . 3 . Time Decay 119 | . 119 . Squads Dispatched . | . . . Investigation . | . . . Extermination . | . . . Reinforcement . | . . . Assault . | . . . Garrison . | . . . Intercept . | . . . Searches Triggered . | . . . Construction Impeded . | . . . Haulers Reinforced . | . . . Active Scanning Responses . | . . . Cargo Convoy Interrupts . | . . . Stealth | -11 -10 -10 --------- Run | Yrd Mat Sub Distress Signals . | . . . Communications Jammed . | . . . Distress Signals . | . . . Times Spotted 16 | . 5 11 Peak Tracking Total 9 | . 2 9 Tactical Retreats . | . . . Traps | -11 -10 -10 ------- Run | Yrd Mat Sub Traps Triggered . | . . . Indirectly . | . . . Trap Hack Attempts . | . . . Triggered . | . . . Disarmed . | . . . Reprogrammed . | . . . Reused . | . . . Traps Extracted . | . . . Installed . | . . . Triggered . | . . . Machines | -11 -10 -10 ---------- Run | Yrd Mat Sub Machines Disabled . | . . . Max in Single Turn . | . . . Machines Repaired . | . . . Machines Dismantled . | . . . Machines Sabotaged . | . . . Overloaded Fab Kills . | . . . Hacking | -11 -10 -10 --------- Run | Yrd Mat Sub Machines Accessed . | . . . Terminals . | . . . Fabricators . | . . . Repair Stations . | . . . Recycling Units . | . . . Scanalyzers . | . . . Garrison Access . | . . . Total Hacks . | . . . Successful . | . . . Failed . | . . . Catastrophic . | . . . Database Lockouts . | . . . Manual 1 | . 1 . Terminals . | . . . Fabricators . | . . . Repair Stations . | . . . Recycling Units . | . . . Scanalyzers . | . . . Garrison Access . | . . . Terminal Hacks . | . . . Fabricator Hacks . | . . . Repair Station Hacks . | . . . Recycling Unit Hacks . | . . . Scanalyzer . | . . . Garrison Access Hacks . | . . . Unauthorized Hacks . | . . . Terminals . | . . . Fabricators . | . . . Repair Stations . | . . . Recycling Units . | . . . Scanalyzers . | . . . Garrison Access . | . . . Data Cores Recovered . | . . . Used . | . . . Hacking Detections . | . . . Full Trace Events . | . . . Feedback Events . | . . . Feedback Blocked . | . . . Robot Schematics Acquired . | . . . Robots Built . | . . . Authchips . | . . . Time . | . . . Total Robot Build Rating . | . . . Part Schematics Acquired . | . . . Parts Built . | . . . Authchips . | . . . Time . | . . . Total Part Build Rating . | . . . Part Studies Acquired . | . . . Parts Repaired . | . . . Time . | . . . Parts Recycled . | . . . Recycled Matter . | . . . Retrieved Matter . | . . . Retrieved Components . | . . . Parts Scanalyzed . | . . . Part Schematics Acquired . | . . . Parts Damaged . | . . . Bothacking | -11 -10 -10 ------------ Run | Yrd Mat Sub Used RIF Installer . | . . . Robots Hacked . | . . . Non-combat . | . . . Combat . | . . . Robot Hacks Applied . | . . . Relay Couplers Released . | . . . Fabnet Peak Effective % . | . . . Robots Rewired . | . . . Allies Hacked . | . . . Hacks Repelled . | . . . Allies | -11 -10 -10 -------- Run | Yrd Mat Sub Total Allies . | . . . Largest Group . | . . . Highest-Rated Group . | . . . Highest-Rated Ally . | . . . Total Orders . | . . . Ally Attacks . | . . . Total Damage . | . . . Kills . | . . . Allies Corrupted . | . . . Allies Melted . | . . . Intel | -11 -10 -10 ------- Run | Yrd Mat Sub Active Infowar (turns) . | . . . Robot Analysis Total . | . . . Derelict Logs Recovered . | . . . Drone Launches . | . . . Drone Recoveries . | . . . Exploration | -11 -10 -10 ------------- Run | Yrd Mat Sub Turns Passed 858 | 96 585 177 Spaces Moved 365 | 50 262 53 Core 36 | 36 . . Treads . | . . . Legs 329 | 14 262 53 Wheels . | . . . Hover . | . . . Flight . | . . . Fastest Speed 50 | 50 120 190 Average Speed 197 | 159 191 260 Slowest Speed 400 | 200 260 400 Overloaded Moves . | . . . Propulsion Burnouts . | . . . Robots Hopped . | . . . Potential Cave-ins . | . . . Cave-ins Triggered . | . . . Exploration Rate (%) 17 | 4 42 7 Regions Visited 2 Branch Regions 1 Pre-discovered Areas . | . . . Known Exits Taken . | . . . Unknown Exits Taken 2 | 1 1 . Scrap Searched . | . . . Spaces Dug . | . . . Terrain Destroyed . | . . . Melee . | . . . Projectile . | . . . AOE . | . . . Terrain Rammed . | . . . Walls Destroyed . | . . . Machines Disabled . | . . . Actions | -11 -10 -10 --------- Run | Yrd Mat Sub Total 449 | 64 306 79 Wait 18 | . 9 9 Move 363 | 49 261 53 Hop . | . . . Pick Up 19 | 8 8 3 Fast Attach . | . . . Attach 9 | 6 1 2 Detach . | . . . Swap 7 | . 4 3 Drop 5 | . 3 2 Fire 28 | 1 20 7 Melee . | . . . Ram . | . . . Kick . | . . . Crush . | . . . Escape Stasis . | . . . Rewire . | . . . Trap . | . . . Miscellaneous . | . . . Route ------- -11/Scrapyard -10/Materials (discovered 3 exits: [*Mat] / [*Min] / [*Sub]) -10/Subcaves History --------- Turn | Location | Event 20 | -11/Scrapyard | Discovered new exit (range 15) 97 | -11/Scrapyard | Entered Materials 139 | -10/Materials | Discovered new exit (range 14) 221 | -10/Materials | Discovered new exit (range 16) 305 | -10/Materials | Build established: Mutant 656 | -10/Materials | Discovered new exit (range 10) 682 | -10/Materials | Entered Subcaves 690 | -10/Subcaves | Ambushed by Subdwellers from Twisted Machinery 805 | -10/Subcaves | Ambushed by swarm of Subdwellers 805 | -10/Subcaves | Ambushed by Subdwellers from Twisted Machinery 805 | -10/Subcaves | Ambushed by Subdwellers from Twisted Machinery 829 | -10/Subcaves | Core integrity fell below 50% 843 | -10/Subcaves | Core integrity fell below 20% 859 | -10/Subcaves | Destroyed by AU-LVI(R) with Subdweller Machine Gun Last Messages --------------- Machinery. 00822_ Lgt. Nuclear Core destroyed. 00826_ Sub. Machine Gun destroyed. 00826_ Critical hit (Meltdown: +230). 00828_ Aluminum Leg destroyed. 00829_ GZ-0AJ(R) destroyed. 00829_ 7G-6OF(R) destroyed. 00833_ UQ-1JA(g) destroyed. 00837_ X3-1DI(R) affixes Scrap Shield Fragment to Scrap Shield. 00837_ Particle Gun destroyed. 00837_ KI-901(R) destroyed. 00841_ TK-QNW(g) destroyed. 00842_ 0L-BM5(R) affixes Scrap Shield Fragment to Scrap Shield. 00844_ Acquired 30 matter. 00847_ X3-1DI(R) destroyed. 00850_ A1-Y68(g) suffers critical hit (Destroy). 00850_ A1-Y68(g) destroyed. 00854_ Acquired Myomer Leg. Map ----- +----------------------------------------------------+ | ?????????????????????????????????????????????????? | | ?????????????????????????????????????????????????? | | ?????????????????????????????????????????????????? | | ?????????????????????????????????????????????????? | | ?????????????????????????????????????????????????? | | ?????????????????????????????????????????????????? | | ?????????????????????????????????????????????????? | | ?????????????????????????????????????????????????? | | ?????????????????????????????????????????????????? | | ?????????????????????????????????????????????????? | | ?????????????????????????????????????????????????? | | ?????????????????????????????????????????????????? | | ?????????????????????????????????????????????????? | | ?????????????????????????????????????????????????? | | ?????????????????????????????????????????????????? | | ?????????????????????????????????????????????????? | | ?????????????????????????????????????????????????? | | ????????????????????????????????????#???????#####? | | ???????????????????????????????????? ##????# ## | | ?????????????????????????###??????? #????# | | ????????????????????????##"##???????# #????# | | ????????????????????????# ""#????????# ##??# | | ??????????????#?????????# #????????# #?# | | ??????????????# ?????#% ##????????# ## | | ???????????????# ## % ]###???????# | | ???????????????# @=%!&%##?????????# | | ???????????????# R&!!R]=###????##### | | ???????????? =!##%=*##??## ### | | ??????????? #####! #### ## | | ??????????? ## ##???## # # " | | ????????????????# ##?????## ## | | ??????????????? #???????# ## | | ????????????? R #????????## # ## ### | | ????????????? ## ??????????######## ##?? | | ???????????????## ## ?????????????????# ##??# | | ????????????????##?# ??????????????????### #?? | | ??????????????????? ???????????????????? #?# | | ??????????????????## ???????????????????## #?## | | ???????????????????##????????????????????? #??? | | ??????????????????????????????????????????# #??? | | ?????????????????????????????????????????? ##??? | | ?????????????????????????????????????????? #???? | | ?????????????????????????????????????????? ???? | | ??????????????????????????????????????????# #???? | | ?????????????????????????????????????????? ???? | | ??????????????????????????????????????????? #???? | | ??????????????????????????????????????????? ????? | | ?????????????????????????????????????????????????? | | ?????????????????????????????????????????????????? | | ?????????????????????????????????????????????????? | +----------------------------------------------------+ Best States ------------- Heat Dissipation 25 Energy Generation 14 Energy Capacity 250 Matter Stores 300 Matter Capacity 300 Sight Range 16 Terrain Scan Density 10 Resistance: KI 20 Resistance: TH 20 Resistance: EX 20 Resistance: EM 20 Resistance: I 20 Resistance: S 20 Resistance: P 20 Evasion (%) 55 Targeting Accuracy 5 Offensive Hacking 10 Item Schematics ----------------- None Robot Schematics ------------------ None Fabricated ------------ Nothing Repaired ---------- Nothing Studied --------- None Alien Tech Used ----------------- None Achievements -------------- None Challenges ------------ None Game ------ Seed LauncherGlidesysShockpuncher Manual? 0 Play Time 00:13:05 Cumulative 26.7 hours Start 2026.07.01 @ 23:25:12 End 2026.07.02 @ 11:22:17 Sessions 1 Manual Loads 0 Difficulty Adventurer Special Mode None Game No. 41 Rogue 0 Adventurer 41 Explorer 0 Win Type - Total 0 Types 0/0/0/0/0/0/0/0/0/0 Lore% 11 Gallery% 17 Achievement% 12 Wizard Run 0 Options --------- Layout 1 ASCII 0 Keyboard 0 Movement Mouse Keybinds 0 Fullscreen 1 Font 24/X11 Map View 50x35 Zoom Use 0% Tactical HUD 1 Map Filters NONE Filters NONE Steam 1 RUN: b25b6b9c-50e0-4879-8e3d-06174c31798c